fUST/lending_fUST_20240430
["ID","MTS","AMOUNT","RATE_DAILY","PERIOD"]
[324947755,1714457471173,-685.27,0.00034246,7]
[324947756,1714457471182,-500.0,0.00034246,7]
[324947757,1714457471191,-500.0,0.00034246,7]
[324947758,1714457471200,-928.29,0.00034246,7]
[324947759,1714457471210,-787.88,0.00034246,7]
[324947760,1714457471219,-554.17,0.00034246,7]
[324947761,1714457471228,-1095.77,0.00034246,7]
[324947762,1714457471237,-500.0,0.00034246,7]
[324947763,1714457471247,-500.0,0.00034246,7]
[324947764,1714457471257,-985.67,0.00034246,7]
[324947765,1714457471267,-500.0,0.00034246,7]
[324947766,1714457471276,-500.0,0.00034246,7]
[324947767,1714457471286,-500.0,0.00034246,7]
[324947768,1714457471295,-500.0,0.00034246,7]
[324947769,1714457471305,-500.0,0.00034246,7]
[324947770,1714457471315,-500.0,0.00034246,7]
[324947771,1714457471324,-577.75,0.00034246,7]
[324947772,1714457471335,-500.0,0.00034246,7]
[324947773,1714457471344,-500.0,0.00034246,7]
[324947774,1714457471354,-500.0,0.00034246,7]
[324947775,1714457471366,-500.0,0.00034246,7]
[324947776,1714457471377,-654.2,0.00034246,7]
[324947777,1714457471388,-500.0,0.00034246,7]
[324947778,1714457471399,-500.0,0.00034246,7]
[324947779,1714457471409,-500.0,0.00034246,7]
[324947780,1714457471419,-500.0,0.00034246,7]
[324947781,1714457471430,-530.17,0.00034246,7]
[324947782,1714457471439,-556.7,0.00034246,7]
[324947783,1714457471452,-611.4,0.00034246,7]
[324947784,1714457471461,-500.0,0.00034246,7]
[324947785,1714457471470,-556.41,0.00034246,7]
[324947786,1714457471480,-366.3222591,0.00034246,7]
[324947787,1714457471490,-786.77,0.00034246,7]
[324947788,1714457471499,-725.92,0.00034246,7]
[324947789,1714457471508,-1136.93,0.00034246,7]
[324947790,1714457471518,-544.02,0.00034246,7]
[324947791,1714457471527,-500.0,0.00034246,7]
[324947792,1714457471536,-506.78,0.00034246,7]
[324947793,1714457471546,-500.0,0.00034246,7]
[324947794,1714457471555,-500.0,0.00034246,7]
[324947795,1714457471564,-545.68,0.00034246,7]
[324947796,1714457471574,-527.95,0.00034246,7]
[324947797,1714457471583,-714.47,0.00034246,7]
[324947798,1714457471592,-7971.4,0.00034246,7]
[324947799,1714457471602,-500.0,0.00034246,7]
[324947800,1714457471611,-500.0,0.00034246,7]
[324947801,1714457471620,-1524.12,0.00034246,7]
[324947802,1714457471629,-500.0,0.00034246,7]
[324947803,1714457471638,-153.8921486,0.00034273,7]
[324947804,1714457471648,-269.9342733,0.00034274,2]
[324947805,1714457471657,-157.73975448,0.00034329,7]
[324947806,1714457471667,-155.21372883,0.00034494,7]
[324947807,1714457471676,-573.99,0.0003452,7]
[324947808,1714457471687,-500.0,0.0003452,7]
[324947809,1714457471696,-500.0,0.0003452,7]
[324947810,1714457471706,-899.84,0.0003452,7]
[324947811,1714457471716,-500.0,0.0003452,7]
[324947812,1714457471726,-500.0,0.0003452,7]
[324947813,1714457471735,-513.6,0.0003452,7]
[324947814,1714457471744,-605.54,0.0003452,7]
[324947815,1714457471753,-532.84,0.0003452,7]
[324947816,1714457471762,-505.64,0.0003452,7]
[324947817,1714457471771,-603.01,0.0003452,7]
[324947818,1714457471780,-500.0,0.0003452,7]
[324947819,1714457471789,-500.0,0.0003452,7]
[324947820,1714457471799,-500.0,0.0003452,7]
[324947821,1714457471808,-500.0,0.0003452,7]
[324947822,1714457471817,-500.0,0.0003452,7]
[324947823,1714457471827,-500.0,0.0003452,7]
[324947824,1714457471836,-500.0,0.0003452,7]
[324947825,1714457471845,-518.31,0.0003452,7]
[324947826,1714457471854,-500.0,0.0003452,7]
[324947827,1714457471863,-500.0,0.0003452,7]
[324947828,1714457471872,-500.0,0.0003452,7]
[324947829,1714457471882,-490.72230874,0.0003452,7]
[324947830,1714457471891,-500.0,0.0003452,30]
[324947831,1714457471900,-500.0,0.0003452,7]
[324947832,1714457471909,-799.99,0.0003452,7]
[324947833,1714457471918,-874.16,0.0003452,7]
[324947834,1714457471927,-500.0,0.0003452,7]
[324947835,1714457471936,-974.74,0.0003452,7]
[324947836,1714457471945,-360.75948881,0.0003452,7]
[324947837,1714457471954,-764.82,0.0003452,7]
[324947838,1714457471963,-514.71469119,0.0003452,3]
[324947839,1714457471972,-1008.03,0.0003452,7]
[324947840,1714457471981,-500.0,0.0003452,7]
[324947841,1714457471991,-599.82,0.0003452,7]
[324947842,1714457472000,-500.0,0.0003452,7]
[324947843,1714457472010,-513.93,0.0003452,7]
[324947844,1714457472019,-500.0,0.0003452,2]
[324947845,1714457472029,-871.87,0.0003452,7]
[324947846,1714457472038,-716.63,0.0003452,7]
[324947847,1714457472048,-300.0,0.0003452,7]
[324947848,1714457472057,-500.0,0.0003452,7]
[324947849,1714457472067,-500.0,0.0003452,7]
[324947850,1714457472076,-500.0,0.0003452,7]
[324947851,1714457472085,-500.0,0.0003452,7]
[324947852,1714457472095,-500.0,0.0003452,7]
[324947853,1714457472104,-500.0,0.0003452,7]
[324947854,1714457472114,-1006.99,0.0003452,7]
[324947855,1714457472203,-500.0,0.0003452,7]
[324947856,1714457472213,-500.0,0.0003452,7]
[324947857,1714457472223,-500.0,0.0003452,7]
[324947858,1714457472233,-412.05569532,0.0003452,7]
[324947859,1714457472242,-500.0,0.0003452,7]
[324947860,1714457472252,-559.33,0.0003452,7]
[324947861,1714457472261,-500.0,0.0003452,7]
[324947862,1714457472270,-509.77,0.0003452,7]
[324947863,1714457472279,-500.0,0.0003452,7]
[324947864,1714457472289,-500.0,0.0003452,7]
[324947865,1714457472300,-728.48,0.0003452,7]
[324947866,1714457472309,-638.59,0.0003452,7]
[324947867,1714457472320,-890.43,0.0003452,7]
[324947868,1714457472329,-500.0,0.0003452,7]
[324947869,1714457472338,-500.0,0.0003452,7]
[324947870,1714457472348,-500.0,0.0003452,7]
[324947871,1714457472357,-500.0,0.0003452,7]
[324947872,1714457472368,-672.86,0.0003452,7]
[324947873,1714457472380,-500.0,0.0003452,7]
[324947874,1714457472390,-500.0,0.0003452,7]
[324947875,1714457472399,-645.5,0.0003452,7]
[324947876,1714457472409,-720.2,0.0003452,7]
[324947877,1714457472418,-500.0,0.0003452,7]
[324947878,1714457472427,-500.0,0.0003452,7]
[324947879,1714457472437,-500.0,0.0003452,7]
[324947880,1714457472447,-500.0,0.0003452,7]
[324947881,1714457472460,-500.0,0.0003452,7]
[324947882,1714457472470,-503.98,0.0003452,7]
[324947883,1714457472479,-500.0,0.0003452,7]
[324947884,1714457472488,-500.0,0.0003452,7]
[324947885,1714457472497,-500.0,0.0003452,7]
[324947886,1714457472507,-652.87,0.0003452,7]
[324947887,1714457472516,-893.45,0.0003452,7]
[324947888,1714457472526,-630.12,0.0003452,7]
[324947889,1714457472535,-500.0,0.0003452,7]
[324947890,1714457472545,-500.0,0.0003452,7]
[324947891,1714457472556,-500.0,0.0003452,7]
[324947892,1714457472565,-890.42,0.0003452,7]
[324947893,1714457472574,-500.0,0.0003452,7]
[324947894,1714457472583,-263.0925182,0.0003452,7]
[324947895,1714457472592,-892.37,0.0003452,7]
[324947896,1714457472602,-500.0,0.0003452,7]
[324947897,1714457472612,-571.67,0.0003452,7]
[324947898,1714457472622,-657.48,0.0003452,7]
[324947899,1714457472631,-728.25,0.0003452,7]
[324947900,1714457472641,-639.64,0.0003452,7]
[324947901,1714457472650,-500.0,0.0003452,7]
[324947902,1714457472659,-565.58,0.0003452,7]
[324947903,1714457472669,-512.91,0.0003452,7]
[324947904,1714457472679,-555.04,0.0003452,7]
[324947905,1714457472689,-707.6,0.0003452,7]
[324947906,1714457472698,-500.0,0.0003452,7]
[324947907,1714457472708,-539.55,0.0003452,7]
[324947908,1714457472717,-607.37778778,0.0003452,7]
[324947909,1714457472727,-500.0,0.0003452,7]
[324947910,1714457472737,-500.0,0.0003452,7]
[324947911,1714457472746,-500.0,0.0003452,7]
[324947912,1714457472756,-820.95,0.0003452,7]
[324947913,1714457472766,-821.44,0.0003452,7]
[324947914,1714457472776,-685.27,0.0003452,7]
[324947915,1714457472785,-500.0,0.0003452,7]
[324947916,1714457472795,-500.0,0.0003452,7]
[324947917,1714457472805,-928.29,0.0003452,7]
[324947918,1714457472814,-787.88,0.0003452,7]
[324947919,1714457472824,-554.17,0.0003452,7]
[324947920,1714457472834,-1095.77,0.0003452,7]
[324947921,1714457472843,-500.0,0.0003452,7]
[324947922,1714457472853,-500.0,0.0003452,7]
[324947923,1714457472863,-985.67,0.0003452,7]
[324947924,1714457472873,-500.0,0.0003452,7]
[324947925,1714457472883,-500.0,0.0003452,7]
[324947926,1714457472893,-500.0,0.0003452,7]
[324947927,1714457472902,-500.0,0.0003452,7]
[324947928,1714457472912,-500.0,0.0003452,7]
[324947929,1714457472921,-500.0,0.0003452,7]
[324947930,1714457472931,-577.75,0.0003452,7]
[324947931,1714457472941,-507.76880537,0.0003452,7]
[324947932,1714457472950,-307.65979722,0.0003452,7]
[324947933,1714457472960,-500.0,0.0003452,7]
[324947934,1714457472970,-500.0,0.0003452,7]
[324947935,1714457472981,-654.2,0.0003452,7]
[324947936,1714457472990,-500.0,0.0003452,7]
[324947937,1714457472999,-500.0,0.0003452,7]
[324947938,1714457473009,-500.0,0.0003452,7]
[324947939,1714457473018,-500.0,0.0003452,7]
[324947940,1714457473028,-530.17,0.0003452,7]
[324947941,1714457473038,-556.7,0.0003452,7]
[324947942,1714457473048,-611.4,0.0003452,7]
[324947943,1714457473057,-500.0,0.0003452,7]
[324947944,1714457473066,-556.41,0.0003452,7]
[324947945,1714457473076,-786.77,0.0003452,7]
[324947946,1714457473086,-1136.93,0.0003452,7]
[324947947,1714457473095,-725.92,0.0003452,7]
[324947948,1714457473104,-544.02,0.0003452,7]
[324947949,1714457473113,-500.0,0.0003452,7]
[324947950,1714457473123,-506.78,0.0003452,7]
[324947951,1714457473132,-500.0,0.0003452,7]
[324947952,1714457473141,-500.0,0.0003452,7]
[324947953,1714457473151,-545.68,0.0003452,7]
[324947954,1714457473160,-527.95,0.0003452,7]
[324947955,1714457473170,-714.47,0.0003452,7]
[324947956,1714457473179,-7971.4,0.0003452,7]
[324947957,1714457473189,-500.0,0.0003452,7]
[324947958,1714457473198,-500.0,0.0003452,7]
[324947959,1714457473208,-1524.12,0.0003452,7]
[324947960,1714457473220,-257.583705,0.00034521,2]
[324947961,1714457473229,-739.469304,0.00034521,2]
[324947962,1714457473238,-242.053011,0.00034521,2]
[324947963,1714457473247,-198.404901,0.00034521,2]
[324947964,1714457473258,-620.00000002,0.00034584,2]
[324947965,1714457473267,-155.21372883,0.0003461,7]
[324947966,1714457473276,-1271.66081619,0.00034728,12]
[324947967,1714457473286,-573.99,0.00034794,7]
[324947968,1714457473295,-500.0,0.00034794,7]
[324947969,1714457473306,-500.0,0.00034794,7]
[324947970,1714457473315,-899.84,0.00034794,7]
[324947971,1714457473325,-500.0,0.00034794,7]
[324947972,1714457473334,-500.0,0.00034794,7]
[324947973,1714457473343,-513.6,0.00034794,7]
[324947974,1714457473353,-605.54,0.00034794,7]
[324947975,1714457473363,-532.84,0.00034794,7]
[324947976,1714457473376,-505.64,0.00034794,7]
[324947977,1714457473385,-603.01,0.00034794,7]
[324947978,1714457473395,-500.0,0.00034794,7]
[324947979,1714457473404,-500.0,0.00034794,7]
[324947980,1714457473415,-500.0,0.00034794,7]
[324947981,1714457473425,-500.0,0.00034794,7]
[324947982,1714457473434,-265.62032147,0.00034794,7]
[324947983,1714457473446,-500.0,0.00034794,7]
[324947984,1714457473456,-500.0,0.00034794,7]
[324947985,1714457473465,-518.31,0.00034794,7]
[324947986,1714457473475,-500.0,0.00034794,7]
[324947987,1714457473484,-323.47452442,0.00034794,7]
[324947988,1714457473493,-500.0,0.00034794,7]
[324947989,1714457473503,-500.0,0.00034794,30]
[324947990,1714457473512,-500.0,0.00034794,7]
[324947991,1714457473522,-799.99,0.00034794,7]
[324947992,1714457473531,-874.16,0.00034794,7]
[324947993,1714457473540,-501.51404283,0.00034794,7]
[324947994,1714457473551,-974.74,0.00034794,7]
[324947995,1714457473634,-764.82,0.00034794,7]
[324947996,1714457473644,-1008.03,0.00034794,7]
[324947997,1714457473654,-500.0,0.00034794,7]
[324947998,1714457473664,-599.82,0.00034794,7]
[324947999,1714457473674,-500.0,0.00034794,7]
[324948000,1714457473684,-513.93,0.00034794,7]
[324948001,1714457473693,-500.0,0.00034794,2]
[324948002,1714457473702,-871.87,0.00034794,7]
[324948003,1714457473712,-716.63,0.00034794,7]
[324948004,1714457473722,-300.0,0.00034794,7]
[324948005,1714457473731,-500.0,0.00034794,7]
[324948006,1714457473741,-500.0,0.00034794,7]
[324948007,1714457473751,-500.0,0.00034794,7]
[324948008,1714457473760,-500.0,0.00034794,7]
[324948009,1714457473770,-500.0,0.00034794,7]
[324948010,1714457473780,-500.0,0.00034794,7]
[324948011,1714457473790,-1006.99,0.00034794,7]
[324948012,1714457473800,-500.0,0.00034794,7]
[324948013,1714457473810,-500.0,0.00034794,7]
[324948014,1714457473820,-500.0,0.00034794,7]
[324948015,1714457473830,-501.0,0.00034794,7]
[324948016,1714457473839,-559.33,0.00034794,7]
[324948017,1714457473848,-500.0,0.00034794,7]
[324948018,1714457473858,-509.77,0.00034794,7]
[324948019,1714457473868,-500.0,0.00034794,7]
[324948020,1714457473877,-500.0,0.00034794,7]
[324948021,1714457473887,-728.48,0.00034794,7]
[324948022,1714457473896,-638.59,0.00034794,7]
[324948023,1714457473905,-890.43,0.00034794,7]
[324948024,1714457473915,-500.0,0.00034794,7]
[324948025,1714457473924,-500.0,0.00034794,7]
[324948026,1714457473934,-500.0,0.00034794,7]
[324948027,1714457473943,-500.0,0.00034794,7]
[324948028,1714457473952,-672.86,0.00034794,7]
[324948029,1714457473962,-500.0,0.00034794,7]
[324948030,1714457473971,-500.0,0.00034794,7]
[324948031,1714457473981,-645.5,0.00034794,7]
[324948032,1714457473990,-720.2,0.00034794,7]
[324948033,1714457474000,-500.0,0.00034794,7]
[324948034,1714457474009,-500.0,0.00034794,7]
[324948035,1714457474018,-500.0,0.00034794,7]
[324948036,1714457474027,-500.0,0.00034794,7]
[324948037,1714457474037,-500.0,0.00034794,7]
[324948038,1714457474046,-503.98,0.00034794,7]
[324948039,1714457474056,-500.0,0.00034794,7]
[324948040,1714457474065,-500.0,0.00034794,7]
[324948041,1714457474075,-500.0,0.00034794,7]
[324948042,1714457474084,-652.87,0.00034794,7]
[324948043,1714457474094,-893.45,0.00034794,7]
[324948044,1714457474103,-630.12,0.00034794,7]
[324948045,1714457474112,-500.0,0.00034794,7]
[324948046,1714457474122,-278.06372724,0.00034794,7]
[324948047,1714457474131,-500.0,0.00034794,7]
[324948048,1714457474140,-890.42,0.00034794,7]
[324948049,1714457474150,-500.0,0.00034794,7]
[324948050,1714457474160,-892.37,0.00034794,7]
[324948051,1714457474169,-500.0,0.00034794,7]
[324948052,1714457474179,-571.67,0.00034794,7]
[324948053,1714457474188,-657.48,0.00034794,7]
[324948054,1714457474198,-728.25,0.00034794,7]
[324948055,1714457474207,-639.64,0.00034794,7]
[324948056,1714457474217,-500.0,0.00034794,7]
[324948057,1714457474227,-565.58,0.00034794,7]
[324948058,1714457474237,-512.91,0.00034794,7]
[324948059,1714457474247,-555.04,0.00034794,7]
[324948060,1714457474257,-707.6,0.00034794,7]
[324948061,1714457474267,-500.0,0.00034794,7]
[324948062,1714457474276,-539.55,0.00034794,7]
[324948063,1714457474286,-440.31176346,0.00034794,7]
[324948064,1714457474295,-500.0,0.00034794,7]
[324948065,1714457474307,-500.0,0.00034794,7]
[324948066,1714457474317,-820.95,0.00034794,7]
[324948067,1714457474328,-821.44,0.00034794,7]
[324948068,1714457474338,-685.27,0.00034794,7]
[324948069,1714457474348,-500.0,0.00034794,7]
[324948070,1714457474358,-500.0,0.00034794,7]
[324948071,1714457474368,-928.29,0.00034794,7]
[324948072,1714457474382,-787.88,0.00034794,7]
[324948073,1714457474392,-554.17,0.00034794,7]
[324948074,1714457474402,-1095.77,0.00034794,7]
[324948075,1714457474412,-500.0,0.00034794,7]
[324948076,1714457474423,-500.0,0.00034794,7]
[324948077,1714457474433,-985.67,0.00034794,7]
[324948078,1714457474443,-500.0,0.00034794,7]
[324948079,1714457474454,-500.0,0.00034794,7]
[324948080,1714457474464,-500.0,0.00034794,7]
[324948081,1714457474473,-500.0,0.00034794,7]
[324948082,1714457474483,-500.0,0.00034794,7]
[324948083,1714457474493,-500.0,0.00034794,7]
[324948084,1714457474502,-577.75,0.00034794,7]
[324948085,1714457474512,-500.0,0.00034794,7]
[324948086,1714457474521,-500.0,0.00034794,7]
[324948087,1714457474530,-654.2,0.00034794,7]
[324948088,1714457474540,-338.22699436,0.00034794,7]
[324948089,1714457474549,-297.56226102,0.00034794,7]
[324948090,1714457474559,-500.0,0.00034794,7]
[324948091,1714457474569,-500.0,0.00034794,7]
[324948092,1714457474579,-530.17,0.00034794,7]
[324948093,1714457474588,-556.7,0.00034794,7]
[324948094,1714457474598,-611.4,0.00034794,7]
[324948095,1714457474607,-500.0,0.00034794,7]
[324948096,1714457474617,-556.41,0.00034794,7]
[324948097,1714457474627,-786.77,0.00034794,7]
[324948098,1714457474636,-1136.93,0.00034794,7]
[324948099,1714457474646,-725.92,0.00034794,7]
[324948100,1714457474655,-544.02,0.00034794,7]
[324948101,1714457474665,-500.0,0.00034794,7]
[324948102,1714457474675,-506.78,0.00034794,7]
[324948103,1714457474685,-500.0,0.00034794,7]
[324948104,1714457474694,-500.0,0.00034794,7]
[324948105,1714457474703,-545.68,0.00034794,7]
[324948106,1714457474713,-527.95,0.00034794,7]
[324948107,1714457474723,-714.47,0.00034794,7]
[324948108,1714457474732,-7971.4,0.00034794,7]
[324948109,1714457474742,-225.59207033,0.00034794,7]
[324948110,1714457474751,-375.67847989,0.00034794,7]
[324948111,1714457474760,-1000.0,0.000348,3]
[324948112,1714457474770,-26908.90743252,0.000349,2]
[324948113,1714457474778,-5914.65556104,0.00035,4]
[324948114,1714457474787,-214.59376254,0.00035,4]
[324948115,1714457474796,-854.16964597,0.00035,2]
[324948116,1714457474806,-6380.49429235,0.00035,4]
[324948117,1714457474815,-447.0489704,0.00035,10]
[324948118,1714457474824,-1116.6496876,0.00035,4]
[324948119,1714457474834,-849.10028097,0.00035,30]
[324948120,1714457474843,-169.28788133,0.00035,30]
[324948121,1714457474851,-474.82,0.00035,30]
[324948122,1714457474860,-152.79752244,0.00035022,7]
[324948123,1714457474869,-573.99,0.00035068,7]
[324948124,1714457474879,-500.0,0.00035068,7]
[324948125,1714457474960,-500.0,0.00035068,7]
[324948126,1714457474970,-899.84,0.00035068,7]
[324948127,1714457474979,-500.0,0.00035068,7]
[324948128,1714457474988,-513.6,0.00035068,7]
[324948129,1714457474997,-605.54,0.00035068,7]
[324948130,1714457475007,-532.84,0.00035068,7]
[324948131,1714457475017,-505.64,0.00035068,7]
[324948132,1714457475027,-603.01,0.00035068,7]
[324948133,1714457475037,-500.0,0.00035068,7]
[324948134,1714457475047,-500.0,0.00035068,7]
[324948135,1714457475056,-500.0,0.00035068,7]
[324948136,1714457475065,-500.0,0.00035068,7]
[324948137,1714457475075,-500.0,0.00035068,7]
[324948138,1714457475084,-518.31,0.00035068,7]
[324948139,1714457475094,-500.0,0.00035068,7]
[324948140,1714457475104,-500.0,0.00035068,7]
[324948141,1714457475113,-278.98389744,0.00035068,7]
[324948142,1714457475122,-500.0,0.00035068,30]
[324948143,1714457475131,-500.0,0.00035068,7]
[324948144,1714457475140,-799.99,0.00035068,7]
[324948145,1714457475150,-874.16,0.00035068,7]
[324948146,1714457475159,-974.74,0.00035068,7]
[324948147,1714457475168,-764.82,0.00035068,7]
[324948148,1714457475178,-1008.03,0.00035068,7]
[324948149,1714457475187,-500.0,0.00035068,7]
[324948150,1714457475197,-599.82,0.00035068,7]
[324948151,1714457475207,-500.0,0.00035068,7]
[324948152,1714457475216,-513.93,0.00035068,7]
[324948153,1714457475226,-500.0,0.00035068,2]
[324948154,1714457475235,-871.87,0.00035068,7]
[324948155,1714457475244,-716.63,0.00035068,7]
[324948156,1714457475253,-300.0,0.00035068,7]
[324948157,1714457475263,-500.0,0.00035068,7]
[324948158,1714457475272,-533.97831515,0.00035068,7]
[324948159,1714457475282,-500.0,0.00035068,7]
[324948160,1714457475293,-500.0,0.00035068,7]
[324948161,1714457475303,-500.0,0.00035068,7]
[324948162,1714457475312,-500.0,0.00035068,7]
[324948163,1714457475321,-1006.99,0.00035068,7]
[324948164,1714457475330,-500.0,0.00035068,7]
[324948165,1714457475341,-500.0,0.00035068,7]
[324948166,1714457475350,-500.0,0.00035068,7]
[324948167,1714457475360,-559.33,0.00035068,7]
[324948168,1714457475371,-500.0,0.00035068,7]
[324948169,1714457475383,-509.77,0.00035068,7]
[324948170,1714457475393,-540.06781762,0.00035068,7]
[324948171,1714457475403,-500.0,0.00035068,7]
[324948172,1714457475414,-728.48,0.00035068,7]
[324948173,1714457475423,-638.59,0.00035068,7]
[324948174,1714457475433,-890.43,0.00035068,7]
[324948175,1714457475443,-500.0,0.00035068,7]
[324948176,1714457475452,-500.0,0.00035068,7]
[324948177,1714457475462,-500.0,0.00035068,7]
[324948178,1714457475472,-500.0,0.00035068,7]
[324948179,1714457475481,-672.86,0.00035068,7]
[324948180,1714457475491,-500.0,0.00035068,7]
[324948181,1714457475500,-500.0,0.00035068,7]
[324948182,1714457475510,-645.5,0.00035068,7]
[324948183,1714457475519,-500.0,0.00035068,7]
[324948184,1714457475531,-720.2,0.00035068,7]
[324948185,1714457475549,-500.0,0.00035068,7]
[324948186,1714457475564,-344.2782891,0.00035068,7]
[324948187,1714457475582,-539.13287213,0.00035068,7]
[324948188,1714457475601,-500.0,0.00035068,7]
[324948189,1714457475618,-503.98,0.00035068,7]
[324948190,1714457475636,-500.0,0.00035068,7]
[324948191,1714457475650,-500.0,0.00035068,7]
[324948192,1714457475665,-500.0,0.00035068,7]
[324948193,1714457475682,-652.87,0.00035068,7]
[324948194,1714457475701,-893.45,0.00035068,7]
[324948195,1714457475714,-630.12,0.00035068,7]
[324948196,1714457475730,-500.0,0.00035068,7]
[324948197,1714457475745,-500.0,0.00035068,7]
[324948198,1714457475760,-890.42,0.00035068,7]
[324948199,1714457475775,-646.59384064,0.00035068,7]
[324948200,1714457475791,-892.37,0.00035068,7]
[324948201,1714457475808,-500.0,0.00035068,7]
[324948202,1714457475823,-571.67,0.00035068,7]
[324948203,1714457475838,-657.48,0.00035068,7]
[324948204,1714457475852,-728.25,0.00035068,7]
[324948205,1714457475869,-639.64,0.00035068,7]
[324948206,1714457475883,-500.0,0.00035068,7]
[324948207,1714457475899,-565.58,0.00035068,7]
[324948208,1714457475913,-512.91,0.00035068,7]
[324948209,1714457475928,-555.04,0.00035068,7]
[324948210,1714457475943,-707.6,0.00035068,7]
[324948211,1714457475956,-500.0,0.00035068,7]
[324948212,1714457475970,-539.55,0.00035068,7]
[324948213,1714457475984,-500.0,0.00035068,7]
[324948214,1714457475999,-500.0,0.00035068,7]
[324948215,1714457476014,-820.95,0.00035068,7]
[324948216,1714457476029,-821.44,0.00035068,7]
[324948217,1714457476043,-685.27,0.00035068,7]
[324948218,1714457476058,-500.0,0.00035068,7]
[324948219,1714457476072,-500.0,0.00035068,7]
[324948220,1714457476086,-928.29,0.00035068,7]
[324948221,1714457476101,-787.88,0.00035068,7]
[324948222,1714457476114,-554.17,0.00035068,7]
[324948223,1714457476129,-1095.77,0.00035068,7]
[324948224,1714457476143,-500.0,0.00035068,7]
[324948225,1714457476159,-500.0,0.00035068,7]
[324948226,1714457476175,-985.67,0.00035068,7]
[324948227,1714457476189,-500.0,0.00035068,7]
[324948228,1714457476205,-500.0,0.00035068,7]
[324948229,1714457476219,-500.0,0.00035068,7]
[324948230,1714457476232,-500.0,0.00035068,7]
[324948231,1714457476247,-195.95900419,0.00035068,7]
[324948232,1714457476260,-500.0,0.00035068,7]
[324948233,1714457476275,-577.75,0.00035068,7]
[324948234,1714457476289,-500.0,0.00035068,7]
[324948235,1714457476303,-500.0,0.00035068,7]
[324948236,1714457476317,-654.2,0.00035068,7]
[324948237,1714457476332,-500.0,0.00035068,7]
[324948238,1714457476347,-500.0,0.00035068,7]
[324948239,1714457476361,-530.17,0.00035068,7]
[324948240,1714457476378,-556.7,0.00035068,7]
[324948241,1714457476393,-611.4,0.00035068,7]
[324948242,1714457476408,-500.0,0.00035068,7]
[324948243,1714457476423,-556.41,0.00035068,7]
[324948244,1714457476540,-786.77,0.00035068,7]
[324948245,1714457476550,-1136.93,0.00035068,7]
[324948246,1714457476560,-725.92,0.00035068,7]
[324948247,1714457476570,-544.02,0.00035068,7]
[324948248,1714457476580,-500.0,0.00035068,7]
[324948249,1714457476591,-506.78,0.00035068,7]
[324948250,1714457476602,-507.76541071,0.00035068,7]
[324948251,1714457476612,-298.06181738,0.00035068,7]
[324948252,1714457476621,-545.68,0.00035068,7]
[324948253,1714457476630,-527.95,0.00035068,7]
[324948254,1714457476640,-714.47,0.00035068,7]